[Event "Titled Tuesday Blitz May 30 Early 2023"]
[White "Wang, Ricky"]
[Black "Kleiman, Jake"]
[WhiteFideId "2071916"]
[BlackFideId "2020041"]
[WhiteElo "2277"]
[BlackElo "2592"]
[Result "0-1"]
[Round "01"]
[TimeControl "180+2"]
[Date "2023.05.30"]
[WhiteClock "0:00:06"]
[BlackClock "0:00:34"]

1. e4 {[%clk 0:02:52]}  e5 {[%clk 0:02:59]} 2. Nf3 {[%clk 0:02:52]}  Nc6 {[%clk 0:03:00]} 3. d4 {[%clk 0:02:52]}  exd4 {[%clk 0:03:00]} 4. Nxd4 {[%clk 0:02:53]}  Bb4+ {[%clk 0:03:00]} 5. c3 {[%clk 0:02:50]}  Bc5 {[%clk 0:03:01]} 6. Nb3 {[%clk 0:02:49]}  Bb6 {[%clk 0:03:01]} 7. Qe2 {[%clk 0:02:49]}  Nf6 {[%clk 0:03:01]} 8. Be3 {[%clk 0:02:47]}  O-O {[%clk 0:02:59]} 9. N1d2 {[%clk 0:02:46]}  Re8 {[%clk 0:02:59]} 10. f3 {[%clk 0:02:45]}  d5 {[%clk 0:02:58]} 11. Bxb6 {[%clk 0:02:45]}  axb6 {[%clk 0:02:57]} 12. O-O-O {[%clk 0:02:43]}  Rxa2 {[%clk 0:02:56]} 13. Kb1 {[%clk 0:02:43]}  Ra8 {[%clk 0:02:55]} 14. f4 {[%clk 0:02:34]}  Bg4 {[%clk 0:02:44]} 15. Nf3 {[%clk 0:02:28]}  dxe4 {[%clk 0:02:41]} 16. Rxd8 {[%clk 0:02:26]}  Raxd8 {[%clk 0:02:42]} 17. Qc2 {[%clk 0:02:18]}  exf3 {[%clk 0:02:38]} 18. gxf3 {[%clk 0:02:16]}  Re1+ {[%clk 0:02:30]} 19. Nc1 {[%clk 0:02:13]}  Bxf3 {[%clk 0:02:28]} 20. Bg2 {[%clk 0:01:47]}  Rxh1 {[%clk 0:02:23]} 21. Bxf3 {[%clk 0:01:47]}  Rf1 {[%clk 0:02:20]} 22. Qe2 {[%clk 0:01:43]}  Rdd1 {[%clk 0:01:56]} 23. Qxd1 {[%clk 0:01:39]}  Rxd1 {[%clk 0:01:57]} 24. Bxd1 {[%clk 0:01:40]}  Kf8 {[%clk 0:01:55]} 25. Bf3 {[%clk 0:01:37]}  Ke7 {[%clk 0:01:53]} 26. Kc2 {[%clk 0:01:37]}  g6 {[%clk 0:01:52]} 27. Nd3 {[%clk 0:01:34]}  Ne8 {[%clk 0:01:40]} 28. Kb3 {[%clk 0:01:29]}  Nd6 {[%clk 0:01:40]} 29. Bd5 {[%clk 0:01:25]}  Nd8 {[%clk 0:01:37]} 30. Kc2 {[%clk 0:01:20]}  c6 {[%clk 0:01:34]} 31. Bb3 {[%clk 0:01:16]}  Ne6 {[%clk 0:01:35]} 32. Kd2 {[%clk 0:01:13]}  Ne4+ {[%clk 0:01:31]} 33. Ke3 {[%clk 0:01:11]}  N4c5 {[%clk 0:01:29]} 34. Bc2 {[%clk 0:01:09]}  Nxd3 {[%clk 0:01:29]} 35. Bxd3 {[%clk 0:01:09]}  f5 {[%clk 0:01:26]} 36. c4 {[%clk 0:01:06]}  Kd6 {[%clk 0:01:25]} 37. b4 {[%clk 0:01:04]}  Nc7 {[%clk 0:01:14]} 38. Kd4 {[%clk 0:01:03]}  c5+ {[%clk 0:01:08]} 39. bxc5+ {[%clk 0:01:00]}  bxc5+ {[%clk 0:01:08]} 40. Ke3 {[%clk 0:00:59]}  Ne6 {[%clk 0:01:05]} 41. Bf1 {[%clk 0:00:55]}  Nd4 {[%clk 0:01:04]} 42. Bg2 {[%clk 0:00:54]}  b6 {[%clk 0:01:03]} 43. Bf1 {[%clk 0:00:54]}  Ke6 {[%clk 0:01:01]} 44. Bg2 {[%clk 0:00:50]}  Kf6 {[%clk 0:01:01]} 45. Bh3 {[%clk 0:00:48]}  h6 {[%clk 0:00:59]} 46. Bg2 {[%clk 0:00:47]}  g5 {[%clk 0:00:59]} 47. h3 {[%clk 0:00:24]}  Ne6 {[%clk 0:00:58]} 48. fxg5+ {[%clk 0:00:22]}  hxg5 {[%clk 0:00:59]} 49. Bc6 {[%clk 0:00:21]}  Ke5 {[%clk 0:00:55]} 50. Bg2 {[%clk 0:00:18]}  Nd4 {[%clk 0:00:48]} 51. Bb7 {[%clk 0:00:17]}  b5 {[%clk 0:00:45]} 52. cxb5 {[%clk 0:00:14]}  Nxb5 {[%clk 0:00:46]} 53. Bc6 {[%clk 0:00:11]}  Nd4 {[%clk 0:00:41]} 54. Be8 {[%clk 0:00:12]}  c4 {[%clk 0:00:40]} 55. Kd2 {[%clk 0:00:10]}  Nf3+ {[%clk 0:00:34]} 56. Ke2 {[%clk 0:00:09]}  Ng1+ {[%clk 0:00:33]} 57. Kf2 {[%clk 0:00:06]}  Nxh3+ {[%clk 0:00:34]} 0-1


[Site "https://www.chess.com"]

[Event "Titled Tuesday Blitz May 30 Early 2023"]
[White "Szabo, Marcell"]
[Black "Nissinen, Niilo Man"]
[WhiteFideId "2072033"]
[BlackFideId "30950767"]
[WhiteElo "1795"]
[BlackElo "1952"]
[Result "1-0"]
[Round "01"]
[TimeControl "180+2"]
[Date "2023.05.30"]
[WhiteClock "0:00:10"]
[BlackClock "0:00:00"]

1. e4 {[%clk 0:02:56]}  c5 {[%clk 0:02:56]} 2. Nf3 {[%clk 0:02:56]}  Nc6 {[%clk 0:02:51]} 3. b4 {[%clk 0:02:56]}  cxb4 {[%clk 0:02:50]} 4. d4 {[%clk 0:02:56]}  d5 {[%clk 0:02:48]} 5. exd5 {[%clk 0:02:57]}  Qxd5 {[%clk 0:02:47]} 6. c4 {[%clk 0:02:58]}  Qh5 {[%clk 0:02:47]} 7. d5 {[%clk 0:02:58]}  Ne5 {[%clk 0:02:44]} 8. Be2 {[%clk 0:02:54]}  Nxf3+ {[%clk 0:02:44]} 9. gxf3 {[%clk 0:02:38]}  Qe5 {[%clk 0:02:44]} 10. Qb3 {[%clk 0:02:28]}  Qxa1 {[%clk 0:02:23]} 11. O-O {[%clk 0:02:27]}  Qf6 {[%clk 0:02:21]} 12. Bb2 {[%clk 0:02:22]}  Qg6+ {[%clk 0:02:14]} 13. Kh1 {[%clk 0:02:22]}  Nf6 {[%clk 0:01:54]} 14. Rg1 {[%clk 0:02:23]}  Qh5 {[%clk 0:01:52]} 15. Qxb4 {[%clk 0:02:16]}  e6 {[%clk 0:01:26]} 16. Qb5+ {[%clk 0:02:13]}  Nd7 {[%clk 0:01:24]} 17. Nc3 {[%clk 0:01:58]}  a6 {[%clk 0:01:22]} 18. Qa4 {[%clk 0:01:58]}  Bd6 {[%clk 0:01:18]} 19. Rg2 {[%clk 0:01:56]}  e5 {[%clk 0:01:10]} 20. Ne4 {[%clk 0:01:54]}  Be7 {[%clk 0:01:05]} 21. Rxg7 {[%clk 0:01:51]}  Kf8 {[%clk 0:00:59]} 22. Rg2 {[%clk 0:01:38]}  f5 {[%clk 0:00:52]} 23. Ng3 {[%clk 0:01:33]}  Qh3 {[%clk 0:00:45]} 24. Qc2 {[%clk 0:01:24]}  Rg8 {[%clk 0:00:42]} 25. Bf1 {[%clk 0:01:18]}  f4 {[%clk 0:00:33]} 26. Nf5 {[%clk 0:01:18]}  Rxg2 {[%clk 0:00:25]} 27. Bxg2 {[%clk 0:01:19]}  Qh5 {[%clk 0:00:23]} 28. Nxe7 {[%clk 0:01:08]}  Kxe7 {[%clk 0:00:24]} 29. Ba3+ {[%clk 0:01:09]}  Kf7 {[%clk 0:00:21]} 30. c5 {[%clk 0:01:08]}  Nf6 {[%clk 0:00:20]} 31. d6 {[%clk 0:01:02]}  Bd7 {[%clk 0:00:18]} 32. Qb3+ {[%clk 0:01:01]}  Kg6 {[%clk 0:00:14]} 33. Qxb7 {[%clk 0:01:01]}  Rc8 {[%clk 0:00:12]} 34. Qxa6 {[%clk 0:00:58]}  e4 {[%clk 0:00:12]} 35. c6 {[%clk 0:00:16]}  Bxc6 {[%clk 0:00:08]} 36. d7 {[%clk 0:00:17]}  Bxd7 {[%clk 0:00:08]} 37. Bb2 {[%clk 0:00:17]}  Rc6 {[%clk 0:00:07]} 38. Qe2 {[%clk 0:00:16]}  exf3 {[%clk 0:00:05]} 39. Bxf3 {[%clk 0:00:17]}  Bg4 {[%clk 0:00:05]} 40. Qd3+ {[%clk 0:00:17]}  Kg7 {[%clk 0:00:03]} 41. Bxc6 {[%clk 0:00:17]}  f3 {[%clk 0:00:02]} 42. Bxf6+ {[%clk 0:00:17]}  Kf7 {[%clk 0:00:00]} 43. Qd5+ {[%clk 0:00:10]} 1-0


[Site "https://www.chess.com"]

[Event "Titled Tuesday Blitz May 30 Early 2023"]
[White "mohsengabr2002"]
[Black "Ismagilov, Damir"]
[BlackFideId "34199982"]
[WhiteElo "2246"]
[BlackElo "2143"]
[Result "0-1"]
[Round "01"]
[TimeControl "180+2"]
[Date "2023.05.30"]
[WhiteClock "0:01:13"]
[BlackClock "0:01:28"]

1. e4 {[%clk 0:03:00]}  g6 {[%clk 0:02:58]} 2. d4 {[%clk 0:03:00]}  Bg7 {[%clk 0:02:58]} 3. Nc3 {[%clk 0:03:00]}  d6 {[%clk 0:02:57]} 4. f3 {[%clk 0:03:00]}  e5 {[%clk 0:02:55]} 5. Be3 {[%clk 0:02:59]}  Nc6 {[%clk 0:02:54]} 6. Nge2 {[%clk 0:02:59]}  Nf6 {[%clk 0:02:51]} 7. d5 {[%clk 0:02:59]}  Ne7 {[%clk 0:02:51]} 8. g4 {[%clk 0:02:59]}  h5 {[%clk 0:02:43]} 9. g5 {[%clk 0:02:53]}  Nh7 {[%clk 0:02:43]} 10. h4 {[%clk 0:02:53]}  Bd7 {[%clk 0:02:40]} 11. Bh3 {[%clk 0:02:48]}  Bxh3 {[%clk 0:02:36]} 12. Rxh3 {[%clk 0:02:47]}  Qd7 {[%clk 0:02:35]} 13. Rh2 {[%clk 0:02:47]}  c5 {[%clk 0:02:25]} 14. a4 {[%clk 0:02:40]}  f5 {[%clk 0:02:21]} 15. gxf6 {[%clk 0:02:38]}  Bxf6 {[%clk 0:02:21]} 16. Qd2 {[%clk 0:02:37]}  a6 {[%clk 0:02:19]} 17. Kf2 {[%clk 0:02:17]}  O-O {[%clk 0:02:14]} 18. Rg1 {[%clk 0:02:15]}  Kh8 {[%clk 0:02:12]} 19. Kg2 {[%clk 0:02:15]}  Rf7 {[%clk 0:02:11]} 20. Kh1 {[%clk 0:02:16]}  Bg7 {[%clk 0:02:07]} 21. Rg3 {[%clk 0:02:10]}  b5 {[%clk 0:02:06]} 22. axb5 {[%clk 0:02:07]}  axb5 {[%clk 0:02:07]} 23. Ng1 {[%clk 0:02:05]}  Ra1 {[%clk 0:02:04]} 24. Rf2 {[%clk 0:02:01]}  Bf6 {[%clk 0:02:00]} 25. Rh2 {[%clk 0:01:54]}  b4 {[%clk 0:01:51]} 26. Nd1 {[%clk 0:01:51]}  Qb5 {[%clk 0:01:52]} 27. Kg2 {[%clk 0:01:47]}  Nf8 {[%clk 0:01:43]} 28. Bg5 {[%clk 0:01:37]}  Nd7 {[%clk 0:01:36]} 29. Bxf6+ {[%clk 0:01:36]}  Nxf6 {[%clk 0:01:37]} 30. Nh3 {[%clk 0:01:32]}  Nxe4 {[%clk 0:01:35]} 31. Qh6+ {[%clk 0:01:26]}  Kg8 {[%clk 0:01:35]} 32. Rxg6+ {[%clk 0:01:26]}  Nxg6 {[%clk 0:01:33]} 33. Ne3 {[%clk 0:01:19]}  Qe2+ {[%clk 0:01:29]} 34. Nf2 {[%clk 0:01:13]}  Qxf2+ {[%clk 0:01:28]} 0-1


[Site "https://www.chess.com"]

[Event "Titled Tuesday Blitz May 30 Early 2023"]
[White "Shevtchenko, Olesya"]
[Black "Kazmin_Semyon"]
[WhiteFideId "24131890"]
[WhiteElo "2003"]
[BlackElo "2245"]
[Result "0-1"]
[Round "01"]
[TimeControl "180+2"]
[Date "2023.05.30"]
[WhiteClock "0:00:00"]
[BlackClock "0:00:57"]

1. e4 {[%clk 0:02:59]}  e6 {[%clk 0:02:58]} 2. d4 {[%clk 0:02:59]}  d5 {[%clk 0:02:58]} 3. Nd2 {[%clk 0:02:57]}  a6 {[%clk 0:02:51]} 4. Ngf3 {[%clk 0:02:55]}  h6 {[%clk 0:02:45]} 5. c3 {[%clk 0:02:52]}  Nf6 {[%clk 0:02:44]} 6. Bd3 {[%clk 0:02:50]}  c5 {[%clk 0:02:43]} 7. e5 {[%clk 0:02:49]}  Nfd7 {[%clk 0:02:42]} 8. O-O {[%clk 0:02:46]}  Nc6 {[%clk 0:02:42]} 9. Re1 {[%clk 0:02:45]}  g5 {[%clk 0:02:42]} 10. h3 {[%clk 0:02:31]}  h5 {[%clk 0:02:35]} 11. dxc5 {[%clk 0:02:23]}  g4 {[%clk 0:02:27]} 12. Nd4 {[%clk 0:02:07]}  Ncxe5 {[%clk 0:02:26]} 13. N2b3 {[%clk 0:02:01]}  gxh3 {[%clk 0:02:23]} 14. Bf4 {[%clk 0:01:57]}  Bg7 {[%clk 0:01:54]} 15. gxh3 {[%clk 0:01:20]}  Qh4 {[%clk 0:01:50]} 16. Bg3 {[%clk 0:01:17]}  Qxh3 {[%clk 0:01:44]} 17. Bf1 {[%clk 0:01:16]}  Qg4 {[%clk 0:01:45]} 18. Be2 {[%clk 0:01:13]}  Qg6 {[%clk 0:01:43]} 19. Kh1 {[%clk 0:01:08]}  Ng4 {[%clk 0:01:32]} 20. Bd3 {[%clk 0:00:43]}  Qf6 {[%clk 0:01:30]} 21. f3 {[%clk 0:00:12]}  h4 {[%clk 0:01:28]} 22. Kg1 {[%clk 0:00:04]}  hxg3 {[%clk 0:01:26]} 23. Qe2 {[%clk 0:00:04]}  Nge5 {[%clk 0:01:17]} 24. Bf5 {[%clk 0:00:04]}  exf5 {[%clk 0:01:17]} 25. f4 {[%clk 0:00:04]}  Qh4 {[%clk 0:01:14]} 26. Qg2 {[%clk 0:00:05]}  Qxf4 {[%clk 0:01:09]} 27. c6 {[%clk 0:00:02]}  bxc6 {[%clk 0:01:07]} 28. Nxc6 {[%clk 0:00:03]}  Bb7 {[%clk 0:01:08]} 29. Nbd4 {[%clk 0:00:03]}  Kf8 {[%clk 0:01:04]} 30. Nb4 {[%clk 0:00:02]}  Rh2 {[%clk 0:00:58]} 31. Qf1 {[%clk 0:00:00]}  Qh4 {[%clk 0:00:57]} 0-1


[Site "https://www.chess.com"]

[Event "Titled Tuesday Blitz May 30 Early 2023"]
[White "Gontcharov, Vladislav"]
[Black "Cesar Maestre, Bernardo"]
[WhiteFideId "4123492"]
[BlackFideId "24542547"]
[WhiteElo "2420"]
[BlackElo "2271"]
[Result "1-0"]
[Round "01"]
[TimeControl "180+2"]
[Date "2023.05.30"]
[WhiteClock "0:00:14"]
[BlackClock "0:00:00"]

1. e4 {[%clk 0:02:58]}  c6 {[%clk 0:02:58]} 2. d4 {[%clk 0:02:57]}  d5 {[%clk 0:02:57]} 3. Nc3 {[%clk 0:02:56]}  dxe4 {[%clk 0:02:55]} 4. Nxe4 {[%clk 0:02:56]}  Bf5 {[%clk 0:02:56]} 5. Ng3 {[%clk 0:02:56]}  Bg6 {[%clk 0:02:57]} 6. Nh3 {[%clk 0:02:53]}  Nf6 {[%clk 0:02:48]} 7. Nf4 {[%clk 0:02:53]}  Nbd7 {[%clk 0:02:46]} 8. c3 {[%clk 0:02:50]}  e5 {[%clk 0:02:43]} 9. Nxg6 {[%clk 0:02:42]}  hxg6 {[%clk 0:02:42]} 10. Be2 {[%clk 0:02:42]}  exd4 {[%clk 0:02:38]} 11. Qxd4 {[%clk 0:02:41]}  Bc5 {[%clk 0:02:36]} 12. Qc4 {[%clk 0:02:22]}  Qe7 {[%clk 0:02:09]} 13. O-O {[%clk 0:02:08]}  Ne5 {[%clk 0:01:59]} 14. Qf4 {[%clk 0:01:54]}  Nd5 {[%clk 0:01:46]} 15. Qg5 {[%clk 0:01:47]}  f6 {[%clk 0:01:39]} 16. Qd2 {[%clk 0:01:44]}  O-O-O {[%clk 0:01:37]} 17. Qc2 {[%clk 0:01:36]}  f5 {[%clk 0:01:16]} 18. h3 {[%clk 0:00:57]}  Qh4 {[%clk 0:00:27]} 19. Kh2 {[%clk 0:00:49]}  Ng4+ {[%clk 0:00:17]} 20. Bxg4 {[%clk 0:00:48]}  fxg4 {[%clk 0:00:18]} 21. Qxg6 {[%clk 0:00:37]}  gxh3 {[%clk 0:00:19]} 22. Qe6+ {[%clk 0:00:32]}  Kb8 {[%clk 0:00:17]} 23. gxh3 {[%clk 0:00:32]}  Rde8 {[%clk 0:00:14]} 24. Qf5 {[%clk 0:00:28]}  Rhf8 {[%clk 0:00:11]} 25. Qg4 {[%clk 0:00:26]}  Qe7 {[%clk 0:00:10]} 26. Bg5 {[%clk 0:00:23]}  Qc7 {[%clk 0:00:08]} 27. Kg2 {[%clk 0:00:20]}  Nf4+ {[%clk 0:00:07]} 28. Bxf4 {[%clk 0:00:20]}  Rxf4 {[%clk 0:00:08]} 29. Qg6 {[%clk 0:00:20]}  Ref8 {[%clk 0:00:08]} 30. Ne4 {[%clk 0:00:17]}  Bb6 {[%clk 0:00:04]} 31. f3 {[%clk 0:00:18]}  Ka8 {[%clk 0:00:02]} 32. Rad1 {[%clk 0:00:17]}  a6 {[%clk 0:00:01]} 33. Qd6 {[%clk 0:00:17]}  Qf7 {[%clk 0:00:00]} 34. Rd3 {[%clk 0:00:14]} 1-0


[Site "https://www.chess.com"]

[Event "Titled Tuesday Blitz May 30 Early 2023"]
[White "FunnyDuck66"]
[Black "ArtemDyachuk"]
[WhiteElo "2219"]
[BlackElo "2567"]
[Result "0-1"]
[Round "01"]
[TimeControl "180+2"]
[Date "2023.05.30"]
[WhiteClock "0:00:00"]
[BlackClock "0:00:33"]

1. d4 {[%clk 0:02:54]}  Nf6 {[%clk 0:02:54]} 2. Nf3 {[%clk 0:02:53]}  e6 {[%clk 0:02:54]} 3. Bg5 {[%clk 0:02:51]}  c5 {[%clk 0:02:53]} 4. e3 {[%clk 0:02:44]}  Nc6 {[%clk 0:02:53]} 5. Nbd2 {[%clk 0:02:41]}  cxd4 {[%clk 0:02:53]} 6. exd4 {[%clk 0:02:41]}  Be7 {[%clk 0:02:53]} 7. c3 {[%clk 0:02:41]}  Nd5 {[%clk 0:02:53]} 8. Bxe7 {[%clk 0:02:40]}  Ncxe7 {[%clk 0:02:54]} 9. Bd3 {[%clk 0:02:40]}  Nf4 {[%clk 0:02:52]} 10. Bf1 {[%clk 0:02:35]}  Qb6 {[%clk 0:02:50]} 11. Qc2 {[%clk 0:02:33]}  d6 {[%clk 0:02:49]} 12. g3 {[%clk 0:02:33]}  Nfd5 {[%clk 0:02:49]} 13. Bd3 {[%clk 0:02:29]}  Bd7 {[%clk 0:02:48]} 14. O-O {[%clk 0:02:27]}  Rc8 {[%clk 0:02:48]} 15. Qb3 {[%clk 0:02:28]}  Qc7 {[%clk 0:02:46]} 16. c4 {[%clk 0:02:18]}  Nf6 {[%clk 0:02:45]} 17. Rac1 {[%clk 0:02:18]}  h5 {[%clk 0:02:45]} 18. h4 {[%clk 0:02:17]}  Ng4 {[%clk 0:02:44]} 19. Ne4 {[%clk 0:02:14]}  Nf5 {[%clk 0:02:41]} 20. Neg5 {[%clk 0:01:56]}  Bc6 {[%clk 0:02:35]} 21. Bxf5 {[%clk 0:01:53]}  exf5 {[%clk 0:02:35]} 22. d5 {[%clk 0:01:53]}  Bd7 {[%clk 0:02:34]} 23. Rfe1+ {[%clk 0:01:52]}  Kf8 {[%clk 0:02:34]} 24. Nd4 {[%clk 0:01:49]}  Qc5 {[%clk 0:02:28]} 25. Rcd1 {[%clk 0:01:19]}  Qxc4 {[%clk 0:02:18]} 26. Qxb7 {[%clk 0:01:18]}  Nf6 {[%clk 0:02:02]} 27. Nxf5 {[%clk 0:01:05]}  Qc2 {[%clk 0:01:27]} 28. Nxd6 {[%clk 0:00:29]}  Ng4 {[%clk 0:01:27]} 29. Qxa7 {[%clk 0:00:19]}  Rc7 {[%clk 0:01:12]} 30. Qd4 {[%clk 0:00:19]}  Rh6 {[%clk 0:01:07]} 31. Ngxf7 {[%clk 0:00:12]}  Rf6 {[%clk 0:01:05]} 32. Rd2 {[%clk 0:00:12]}  Qg6 {[%clk 0:00:53]} 33. Rde2 {[%clk 0:00:08]}  Rxd6 {[%clk 0:00:49]} 34. Nxd6 {[%clk 0:00:08]}  Qxd6 {[%clk 0:00:49]} 35. Re7 {[%clk 0:00:06]}  Nf6 {[%clk 0:00:47]} 36. Qe3 {[%clk 0:00:03]}  Nxd5 {[%clk 0:00:40]} 37. Qf3+ {[%clk 0:00:02]}  Nf6 {[%clk 0:00:38]} 38. Qe3 {[%clk 0:00:03]}  Bc6 {[%clk 0:00:34]} 39. Qg5 {[%clk 0:00:00]}  Rxe7 {[%clk 0:00:33]} 0-1


[Site "https://www.chess.com"]

[Event "Titled Tuesday Blitz May 30 Early 2023"]
[White "Borodavkin, Anatoly"]
[Black "Kiremitciyan, Ari"]
[WhiteFideId "14150662"]
[BlackFideId "6373445"]
[WhiteElo "1991"]
[BlackElo "2181"]
[Result "0-1"]
[Round "01"]
[TimeControl "180+2"]
[Date "2023.05.30"]
[WhiteClock "0:00:00"]
[BlackClock "0:00:06"]

1. e4 {[%clk 0:02:59]}  e5 {[%clk 0:02:58]} 2. Nf3 {[%clk 0:02:58]}  Nc6 {[%clk 0:02:56]} 3. Bb5 {[%clk 0:02:58]}  g6 {[%clk 0:02:56]} 4. O-O {[%clk 0:02:57]}  Bg7 {[%clk 0:02:56]} 5. d3 {[%clk 0:02:53]}  d6 {[%clk 0:02:56]} 6. h3 {[%clk 0:02:51]}  Ne7 {[%clk 0:02:57]} 7. Be3 {[%clk 0:02:48]}  O-O {[%clk 0:02:57]} 8. Qd2 {[%clk 0:02:48]}  a6 {[%clk 0:02:53]} 9. Ba4 {[%clk 0:02:47]}  b5 {[%clk 0:02:52]} 10. Bb3 {[%clk 0:02:47]}  Nd4 {[%clk 0:02:42]} 11. Nxd4 {[%clk 0:02:38]}  exd4 {[%clk 0:02:43]} 12. Bh6 {[%clk 0:02:38]}  Be6 {[%clk 0:02:36]} 13. Bxg7 {[%clk 0:02:31]}  Kxg7 {[%clk 0:02:35]} 14. Bxe6 {[%clk 0:02:31]}  fxe6 {[%clk 0:02:36]} 15. a4 {[%clk 0:02:29]}  c5 {[%clk 0:02:31]} 16. axb5 {[%clk 0:02:28]}  axb5 {[%clk 0:02:32]} 17. Rxa8 {[%clk 0:02:28]}  Qxa8 {[%clk 0:02:33]} 18. Qg5 {[%clk 0:02:18]}  Rf7 {[%clk 0:02:08]} 19. f4 {[%clk 0:02:18]}  Qa2 {[%clk 0:02:01]} 20. f5 {[%clk 0:02:18]}  exf5 {[%clk 0:01:57]} 21. exf5 {[%clk 0:02:17]}  Nxf5 {[%clk 0:01:57]} 22. g4 {[%clk 0:02:12]}  Ne3 {[%clk 0:01:54]} 23. Rxf7+ {[%clk 0:02:10]}  Qxf7 {[%clk 0:01:55]} 24. Nd2 {[%clk 0:02:06]}  Qf6 {[%clk 0:01:27]} 25. Qxf6+ {[%clk 0:01:55]}  Kxf6 {[%clk 0:01:28]} 26. c3 {[%clk 0:01:50]}  Ke5 {[%clk 0:01:20]} 27. c4 {[%clk 0:00:56]}  bxc4 {[%clk 0:01:16]} 28. dxc4 {[%clk 0:00:55]}  d3 {[%clk 0:01:11]} 29. b3 {[%clk 0:00:52]}  Kd4 {[%clk 0:00:52]} 30. Kf2 {[%clk 0:00:47]}  Nd1+ {[%clk 0:00:40]} 31. Ke1 {[%clk 0:00:47]}  Nb2 {[%clk 0:00:41]} 32. h4 {[%clk 0:00:30]}  h5 {[%clk 0:00:38]} 33. g5 {[%clk 0:00:19]}  Kc3 {[%clk 0:00:37]} 34. Ne4+ {[%clk 0:00:17]}  Kxb3 {[%clk 0:00:37]} 35. Kd2 {[%clk 0:00:17]}  Nxc4+ {[%clk 0:00:35]} 36. Kxd3 {[%clk 0:00:17]}  Ne5+ {[%clk 0:00:27]} 37. Ke3 {[%clk 0:00:16]}  Nf7 {[%clk 0:00:21]} 38. Nf6 {[%clk 0:00:08]}  c4 {[%clk 0:00:18]} 39. Nd5 {[%clk 0:00:06]}  Ne5 {[%clk 0:00:07]} 40. Kd2 {[%clk 0:00:00]}  Kb2 {[%clk 0:00:06]} 0-1


[Site "https://www.chess.com"]

[Event "Titled Tuesday Blitz May 30 Early 2023"]
[White "Romkachess"]
[Black "Nugumanov, Bakhtiyar"]
[BlackFideId "13701797"]
[WhiteElo "2564"]
[BlackElo "2209"]
[Result "0-1"]
[Round "01"]
[TimeControl "180+2"]
[Date "2023.05.30"]
[WhiteClock "0:01:09"]
[BlackClock "0:00:22"]

1. e4 {[%clk 0:03:00]}  e6 {[%clk 0:02:58]} 2. d4 {[%clk 0:03:00]}  d5 {[%clk 0:02:56]} 3. Nc3 {[%clk 0:03:01]}  Bb4 {[%clk 0:02:56]} 4. e5 {[%clk 0:03:00]}  c5 {[%clk 0:02:55]} 5. a3 {[%clk 0:03:01]}  Bxc3+ {[%clk 0:02:56]} 6. bxc3 {[%clk 0:03:02]}  Nc6 {[%clk 0:02:56]} 7. Qg4 {[%clk 0:03:00]}  g6 {[%clk 0:02:55]} 8. h4 {[%clk 0:02:49]}  h6 {[%clk 0:02:48]} 9. Ne2 {[%clk 0:02:44]}  Qa5 {[%clk 0:02:45]} 10. Bd2 {[%clk 0:02:44]}  c4 {[%clk 0:02:44]} 11. g3 {[%clk 0:02:41]}  Bd7 {[%clk 0:02:38]} 12. Bh3 {[%clk 0:02:41]}  O-O-O {[%clk 0:02:36]} 13. O-O {[%clk 0:02:41]}  Nce7 {[%clk 0:02:14]} 14. Rfb1 {[%clk 0:02:36]}  f5 {[%clk 0:02:13]} 15. exf6 {[%clk 0:02:25]}  Nxf6 {[%clk 0:02:13]} 16. Qf4 {[%clk 0:02:22]}  Ne4 {[%clk 0:01:55]} 17. Be1 {[%clk 0:02:14]}  g5 {[%clk 0:01:52]} 18. Qe3 {[%clk 0:01:56]}  gxh4 {[%clk 0:01:51]} 19. gxh4 {[%clk 0:01:57]}  Rdg8+ {[%clk 0:01:49]} 20. Kh1 {[%clk 0:01:57]}  Nf5 {[%clk 0:01:45]} 21. Bxf5 {[%clk 0:01:57]}  exf5 {[%clk 0:01:46]} 22. f3 {[%clk 0:01:57]}  Nf6 {[%clk 0:01:38]} 23. Bg3 {[%clk 0:01:56]}  Nh5 {[%clk 0:00:52]} 24. Be5 {[%clk 0:01:55]}  Qd8 {[%clk 0:00:48]} 25. Qf2 {[%clk 0:01:52]}  f4 {[%clk 0:00:24]} 26. Nxf4 {[%clk 0:01:37]}  Ng3+ {[%clk 0:00:23]} 27. Kh2 {[%clk 0:01:09]}  Qxh4+ {[%clk 0:00:22]} 0-1


[Site "https://www.chess.com"]

[Event "Titled Tuesday Blitz May 30 Early 2023"]
[White "Samaganova, Aleksandra"]
[Black "Baghdasaryan, Vahe"]
[WhiteFideId "13800221"]
[BlackFideId "13303139"]
[WhiteElo "1858"]
[BlackElo "2216"]
[Result "0-1"]
[Round "01"]
[TimeControl "180+2"]
[Date "2023.05.30"]
[WhiteClock "0:00:02"]
[BlackClock "0:00:06"]

1. c4 {[%clk 0:03:00]}  c6 {[%clk 0:02:57]} 2. Nf3 {[%clk 0:03:00]}  d5 {[%clk 0:02:53]} 3. e3 {[%clk 0:02:48]}  Nf6 {[%clk 0:02:52]} 4. Nc3 {[%clk 0:02:45]}  Nbd7 {[%clk 0:02:50]} 5. d4 {[%clk 0:02:44]}  e6 {[%clk 0:02:40]} 6. Bd3 {[%clk 0:02:42]}  Bd6 {[%clk 0:02:36]} 7. O-O {[%clk 0:02:40]}  O-O {[%clk 0:02:36]} 8. e4 {[%clk 0:02:36]}  dxc4 {[%clk 0:02:22]} 9. Bxc4 {[%clk 0:02:35]}  e5 {[%clk 0:02:22]} 10. h3 {[%clk 0:02:24]}  Qe7 {[%clk 0:02:11]} 11. Re1 {[%clk 0:02:23]}  exd4 {[%clk 0:01:39]} 12. Nxd4 {[%clk 0:02:22]}  Ne5 {[%clk 0:01:39]} 13. Be2 {[%clk 0:02:12]}  Rd8 {[%clk 0:01:37]} 14. Qc2 {[%clk 0:02:04]}  Bc7 {[%clk 0:01:28]} 15. Be3 {[%clk 0:02:03]}  Ng6 {[%clk 0:01:21]} 16. Rad1 {[%clk 0:01:53]}  Nf4 {[%clk 0:01:19]} 17. Bf1 {[%clk 0:01:52]}  N6h5 {[%clk 0:00:34]} 18. Nf5 {[%clk 0:01:38]}  Bxf5 {[%clk 0:00:33]} 19. exf5 {[%clk 0:01:37]}  Qg5 {[%clk 0:00:29]} 20. Bxf4 {[%clk 0:01:26]}  Nxf4 {[%clk 0:00:17]} 21. Re3 {[%clk 0:01:23]}  Bb6 {[%clk 0:00:16]} 22. Rf3 {[%clk 0:01:15]}  Rxd1 {[%clk 0:00:15]} 23. Nxd1 {[%clk 0:01:02]}  Re8 {[%clk 0:00:09]} 24. Qc4 {[%clk 0:00:54]}  Nd5 {[%clk 0:00:08]} 25. Qg4 {[%clk 0:00:46]}  Qf6 {[%clk 0:00:08]} 26. Ne3 {[%clk 0:00:33]}  Nxe3 {[%clk 0:00:07]} 27. fxe3 {[%clk 0:00:34]}  Bxe3+ {[%clk 0:00:07]} 28. Kh1 {[%clk 0:00:33]}  h6 {[%clk 0:00:08]} 29. Qb4 {[%clk 0:00:22]}  Bb6 {[%clk 0:00:07]} 30. Qd2 {[%clk 0:00:19]}  Qe5 {[%clk 0:00:07]} 31. Bc4 {[%clk 0:00:16]}  Bc7 {[%clk 0:00:07]} 32. g3 {[%clk 0:00:10]}  Qe4 {[%clk 0:00:07]} 33. Kg2 {[%clk 0:00:09]}  Qxc4 {[%clk 0:00:07]} 34. Qf2 {[%clk 0:00:08]}  Re2 {[%clk 0:00:07]} 35. g4 {[%clk 0:00:07]}  Rxf2+ {[%clk 0:00:07]} 36. Rxf2 {[%clk 0:00:08]}  Bb6 {[%clk 0:00:08]} 37. Rd2 {[%clk 0:00:07]}  Qe4+ {[%clk 0:00:07]} 38. Kf1 {[%clk 0:00:07]}  Qf3+ {[%clk 0:00:07]} 39. Ke1 {[%clk 0:00:02]}  Ba5 {[%clk 0:00:06]} 0-1


[Site "https://www.chess.com"]